bitfinex/quotes_SOLUSD_20250721
["timestamp","ask_amount","ask_price","bid_price","bid_amount"]
[1753102281488,17.48468397,191.65,191.64,0.03]
[1753102281678,0.7,191.65,191.64,0.03]
[1753102281884,16.78468397,191.68,191.64,0.03]
[1753102282098,36.84,191.67,191.64,0.03]
[1753102282580,37.54,191.67,191.64,0.03]
[1753102285605,0.7,191.66,191.65,26.0]
[1753102287188,0.7,191.66,191.65,31.21784503]
[1753102291784,17.48468397,191.66,191.65,31.21784503]
[1753102293003,17.47468397,191.66,191.65,31.21784503]
[1753102294013,17.47468397,191.66,191.65,31.24784503]
[1753102294205,17.47468397,191.66,191.65,26.03]
[1753102294401,17.47468397,191.66,191.65,0.03]
[1753102296915,54.29468397,191.66,191.65,0.03]
[1753102304720,59.51225675,191.66,191.65,0.03]
[1753102305524,54.29468397,191.66,191.65,0.03]
[1753102305720,59.51225675,191.66,191.65,0.03]
[1753102305923,66.07675675,191.66,191.65,0.03]
[1753102307225,60.85918397,191.66,191.65,0.03]
[1753102307410,66.07675675,191.66,191.65,0.03]
[1753102307613,60.85918397,191.66,191.65,0.03]
[1753102308519,66.07675675,191.66,191.65,0.03]
[1753102308909,60.85918397,191.66,191.65,0.03]
[1753102311912,54.29468397,191.66,191.65,0.03]
[1753102312718,17.47468397,191.66,191.65,0.03]
[1753102312927,54.41468397,191.66,191.65,0.03]
[1753102317925,54.47468397,191.66,191.65,0.03]
[1753102325032,144.27468397,191.66,191.65,0.03]
[1753102328647,16.84468397,191.66,191.65,0.03]
[1753102328945,53.70468397,191.66,191.65,0.75]
[1753102329625,53.70468397,191.66,191.65,0.03]
[1753102337744,53.70468397,191.66,191.65,0.75]
[1753102338049,0.06,191.66,191.65,26.75]
[1753102338241,36.88,191.66,191.65,26.75]
[1753102338954,36.86,191.66,191.65,26.75]
[1753102339456,36.86,191.66,191.65,26.03]
[1753102339841,36.86,191.66,191.65,31.24784503]
[1753102345257,37.58,191.66,191.65,31.24784503]
[1753102345637,54.36468397,191.66,191.65,0.03]
[1753102347542,59.58225675,191.66,191.65,0.03]
[1753102348655,17.56468397,191.66,191.65,0.03]
[1753102348845,54.40468397,191.66,191.65,0.03]
[1753102350767,17.56468397,191.66,191.65,0.03]
[1753102350955,54.40468397,191.66,191.65,0.03]
[1753102351348,17.56468397,191.66,191.65,0.03]
[1753102351555,54.38468397,191.66,191.65,0.03]
[1753102353471,17.56468397,191.66,191.65,0.03]
[1753102353641,54.38468397,191.66,191.65,0.03]
[1753102353845,53.64468397,191.66,191.65,0.03]
[1753102356271,54.33468397,191.66,191.65,0.03]
[1753102357148,59.55225675,191.66,191.65,0.03]
[1753102357968,54.33468397,191.66,191.65,0.03]
[1753102358848,59.55225675,191.66,191.65,0.03]
[1753102361177,16.84468397,191.66,191.65,0.03]
[1753102361563,53.80468397,191.66,191.65,0.69]
[1753102361768,37.02,191.66,191.65,0.69]
[1753102361952,37.02,191.66,191.65,0.03]
[1753102362569,0.06,191.66,191.65,0.03]
[1753102362774,37.02,191.66,191.65,0.03]
[1753102363073,37.02,191.66,191.65,0.69]
[1753102363454,37.02,191.66,191.65,0.03]
[1753102365453,0.06,191.66,191.65,26.03]
[1753102365654,37.0,191.66,191.65,26.69]
[1753102367881,37.0,191.66,191.65,5.90784503]
[1753102368076,37.0,191.66,191.65,31.90784503]
[1753102369477,0.06,191.66,191.65,31.90784503]
[1753102369656,36.98,191.66,191.65,31.90784503]
[1753102370278,0.06,191.66,191.65,5.90784503]
[1753102370471,36.96,191.66,191.65,5.90784503]
[1753102370878,0.06,191.7,191.68,26.0]
[1753102371079,36.9,191.69,191.68,30.14196237]
[1753102371465,0.06,191.7,191.68,30.14196237]
[1753102371665,0.06,191.7,191.69,0.66]
[1753102372480,36.9,191.72,191.7,6.1816]
[1753102372678,36.96,191.74,191.73,26.0]
[1753102372864,36.96,191.74,191.73,26.66]
[1753102374574,36.96,191.74,191.73,31.87566786]
[1753102375282,16.78468397,191.73,191.71,5.21615565]
[1753102375673,16.78468397,191.73,191.72,26.0]
[1753102375860,17.47468397,191.73,191.72,26.0]
[1753102377286,17.47468397,191.73,191.71,5.2161723]
[1753102378188,17.47468397,191.73,191.69,31.21675622]
[1753102379583,0.69,191.72,191.69,31.21675622]
[1753102379791,36.88,191.71,191.69,31.21675622]
[1753102381187,36.88,191.71,191.7,0.66]
[1753102381689,36.88,191.71,191.7,5.87648408]
[1753102383088,36.94,191.71,191.7,5.87648408]
[1753102384296,36.94,191.71,191.7,5.21648408]
[1753102385090,0.06,191.71,191.7,5.90648408]
[1753102388594,0.06,191.71,191.7,5.21648408]
[1753102388978,0.06,191.71,191.7,5.90648408]
[1753102393482,36.86,191.72,191.7,5.90648408]
[1753102393800,0.06,191.74,191.7,5.90648408]
[1753102393801,1e-08,191.74,191.73,26.0]
[1753102393986,1e-08,191.74,191.73,31.21566786]
[1753102394187,1e-08,191.74,191.73,31.90566786]
[1753102396100,1e-08,191.74,191.73,31.21566786]
[1753102396299,1e-08,191.74,191.73,31.90566786]
[1753102398595,36.78,191.79,191.73,44.94483752]
[1753102398905,36.78,191.79,191.74,0.69]
[1753102399302,36.78,191.8,191.74,0.69]
[1753102399619,36.78,191.8,191.73,44.25483752]
[1753102399787,36.28,191.8,191.73,44.25483752]
[1753102400609,0.71,191.79,191.73,44.25483752]
[1753102401388,0.71,191.79,191.73,31.21566786]
[1753102401917,0.71,191.79,191.73,5.21566786]
[1753102404491,36.76,191.78,191.73,5.21566786]
[1753102404692,0.71,191.77,191.73,5.21566786]
[1753102405287,0.71,191.77,191.72,26.0]
[1753102405496,36.74,191.76,191.7,26.0]
[1753102405702,0.71,191.75,191.7,26.0]
[1753102406097,0.71,191.75,191.7,26.69]
[1753102407092,0.71,191.75,191.71,5.21621198]
[1753102407402,0.71,191.75,191.7,31.21643662]
[1753102407600,5.92515401,191.75,191.69,31.21672389]
[1753102407805,17.49468397,191.74,191.69,31.21672389]
[1753102408013,16.78468397,191.74,191.69,31.21672389]
[1753102408208,0.71,191.73,191.69,31.21672389]
[1753102408607,0.71,191.72,191.71,26.0]
[1753102409019,37.45,191.72,191.71,26.0]
[1753102409415,37.45,191.72,191.7,5.21625967]
[1753102409613,36.74,191.72,191.7,5.21625967]
[1753102410016,36.74,191.72,191.7,5.90625967]
[1753102410636,35.74,191.72,191.7,5.90625967]
[1753102411502,35.74,191.72,191.71,0.65]
[1753102411905,35.74,191.72,191.7,5.21625967]
[1753102412522,35.74,191.72,191.7,5.86625967]
[1753102413022,36.74,191.72,191.7,5.86625967]
[1753102415108,36.74,191.72,191.71,0.65]
[1753102415303,2.2738,191.76,191.71,0.65]
[1753102415512,36.72,191.73,191.71,0.65]
[1753102416035,36.72,191.73,191.72,26.65]
[1753102416344,0.66,191.75,191.72,31.86593991]
[1753102416520,1.6138,191.76,191.72,31.86593991]
[1753102416842,36.72,191.75,191.72,31.86593991]
[1753102417424,0.66,191.74,191.72,26.0]
[1753102417937,36.72,191.75,191.72,26.0]
[1753102418122,37.38,191.75,191.72,31.2158649]
[1753102418432,0.66,191.74,191.72,31.2158649]
[1753102420039,0.66,191.73,191.72,26.0]
[1753102423410,16.78468397,191.72,191.66,5.24733924]
[1753102423628,37.36,191.71,191.66,5.24733924]
[1753102423837,0.66,191.7,191.66,31.89733924]
[1753102424015,0.66,191.69,191.68,26.0]
[1753102424836,36.7,191.71,191.68,26.0]
[1753102425022,0.66,191.7,191.68,26.0]
[1753102425611,0.66,191.69,191.68,26.0]
[1753102426622,0.66,191.69,191.66,0.03]
[1753102427117,36.7,191.71,191.66,0.03]
[1753102427118,0.66,191.68,191.66,0.03]
[1753102427429,36.68,191.67,191.66,0.03]
[1753102428036,37.34,191.67,191.66,0.03]
[1753102428219,36.68,191.67,191.66,0.03]
[1753102429419,37.34,191.67,191.66,0.03]
[1753102430532,36.68,191.67,191.66,0.03]
[1753102431343,37.34,191.67,191.66,0.03]
[1753102432530,59.34198453,191.67,191.66,0.03]
[1753102432729,67.15938453,191.67,191.66,0.03]
[1753102436960,25.26208397,191.67,191.66,0.03]
[1753102437243,61.96208397,191.67,191.66,0.03]
[1753102438639,25.26208397,191.67,191.66,0.03]
[1753102438832,55.65648397,191.67,191.66,0.03]
[1753102444733,18.95648397,191.67,191.66,0.03]
[1753102444951,55.65648397,191.67,191.66,0.03]
[1753102448053,60.87378453,191.67,191.66,0.03]
[1753102448565,55.65648397,191.67,191.66,0.03]
[1753102448765,60.87378453,191.67,191.66,0.03]
[1753102462551,63.46826641,191.67,191.66,0.03]
[1753102463553,55.65648397,191.67,191.66,0.03]
[1753102464562,60.87378453,191.67,191.66,0.03]
[1753102465161,42.78468397,191.65,191.64,0.03]
[1753102465464,16.78468397,191.64,191.63,0.03]
[1753102465657,16.78468397,191.64,191.62,0.03]
[1753102465658,167.25468397,191.64,191.62,0.03]
[1753102465848,54.15468397,191.63,191.62,0.03]
[1753102466666,59.37307357,191.63,191.62,0.03]
[1753102466873,54.15468397,191.63,191.62,0.03]
[1753102468283,59.37307357,191.63,191.62,0.03]
[1753102469159,22.67307357,191.63,191.62,0.03]
[1753102469561,59.37307357,191.63,191.62,0.03]
[1753102469768,22.67307357,191.63,191.62,0.03]
[1753102469963,59.37307357,191.63,191.62,0.03]
[1753102472570,58.70307357,191.63,191.62,0.03]
[1753102473261,59.36307357,191.63,191.62,0.03]
[1753102475359,58.70307357,191.63,191.62,0.03]
[1753102475578,59.36307357,191.63,191.62,0.03]
[1753102492778,16.78468397,191.62,191.6,1e-08]
[1753102493093,53.48468397,191.61,191.6,1e-08]
[1753102493403,54.14468397,191.61,191.6,1e-08]
[1753102493792,16.78468397,191.6,191.59,1e-08]
[1753102494097,17.44468397,191.6,191.58,1e-08]
[1753102494406,149.16416306,191.59,191.58,1e-08]
[1753102494981,16.78468397,191.58,191.55,0.03]
[1753102495180,16.78468397,191.56,191.55,0.03]
[1753102495380,53.48468397,191.56,191.55,0.03]
[1753102495593,54.14468397,191.56,191.55,0.03]
[1753102496306,59.36498048,191.56,191.55,0.03]
[1753102497502,59.36498048,191.56,191.55,1e-08]
[1753102497702,16.78468397,191.53,191.48,1.52011044]
[1753102498002,16.78468397,191.51,191.48,1.52011044]
[1753102498301,53.48468397,191.51,191.48,1.52011044]
[1753102498498,59.36634341,191.51,191.48,1.52011044]
[1753102499699,16.78468397,191.49,191.47,0.2]
[1753102499989,53.48468397,191.48,191.47,0.2]
[1753102500190,54.14468397,191.48,191.47,0.2]
[1753102501687,59.36716151,191.48,191.47,0.2]
[1753102502300,16.78468397,191.48,191.47,0.2]
[1753102502500,16.78468397,191.48,191.47,0.87]
[1753102502697,58.70716151,191.48,191.47,0.87]
[1753102503498,53.48468397,191.48,191.47,0.87]
[1753102503684,16.78468397,191.48,191.47,0.87]
[1753102504086,53.48468397,191.48,191.47,0.87]
[1753102504790,16.78468397,191.48,191.47,0.87]
[1753102504989,89.8,191.52,191.47,0.87]
[1753102505298,53.50468397,191.51,191.48,0.67]
[1753102505705,36.72,191.5,191.49,26.0]
[1753102505918,36.72,191.5,191.49,26.67]
[1753102506894,36.72,191.5,191.49,31.89220481]
[1753102508100,36.7,191.5,191.49,31.89220481]
[1753102508809,36.7,191.5,191.49,39.53970481]
[1753102510602,16.78468397,191.6,191.49,52.59521684]
[1753102510922,16.78468397,191.58,191.5,0.67]
[1753102511117,36.7,191.57,191.5,0.67]
[1753102512040,36.7,191.57,191.53,26.0]
[1753102512316,36.7,191.57,191.55,8.0414]
[1753102512525,36.7,191.57,191.56,0.67]
[1753102512922,36.7,191.57,191.56,5.89029651]
[1753102515400,36.76,191.57,191.56,5.89029651]
[1753102528442,36.76,191.57,191.53,0.67]
[1753102528846,0.7,191.56,191.51,0.67]
[1753102529162,0.7,191.56,191.53,26.0]
[1753102529325,0.7,191.56,191.52,0.67]
[1753102529730,16.78468397,191.54,191.49,5.22214243]
[1753102530060,37.38,191.53,191.49,5.89214243]
[1753102530431,36.68,191.53,191.5,5.891708]
[1753102530743,36.68,191.53,191.51,0.67]
[1753102531430,89.86,191.57,191.52,0.71]
[1753102531636,36.68,191.56,191.52,0.71]
[1753102532036,36.68,191.56,191.53,26.0]
[1753102532238,36.68,191.56,191.54,0.71]
[1753102532848,36.68,191.56,191.53,31.22102069]
[1753102533044,36.68,191.55,191.53,26.0]
[1753102533442,37.37,191.55,191.53,26.0]
[1753102533636,0.69,191.54,191.5,0.71]
[1753102534037,36.68,191.55,191.53,26.0]
[1753102534237,16.78468397,191.54,191.49,26.0]
[1753102534660,16.78468397,191.54,191.47,5.42272172]
[1753102534661,16.78468397,191.52,191.47,5.42272172]
[1753102534959,37.37,191.51,191.47,5.42272172]
[1753102535254,37.37,191.51,191.47,31.42272172]
[1753102535454,0.69,191.5,191.47,31.42272172]
[1753102535660,0.69,191.5,191.47,5.42272172]
[1753102535848,36.68,191.51,191.47,32.13272172]
[1753102536050,36.68,191.51,191.48,0.71]
[1753102536251,36.68,191.51,191.49,0.71]
[1753102536450,36.68,191.51,191.47,32.13272172]
[1753102536656,36.68,191.51,191.48,0.71]
[1753102537362,36.68,191.51,191.48,5.93237491]
[1753102539661,0.69,191.5,191.47,26.2]
[1753102539969,0.69,191.49,191.47,31.42270717]
[1753102540141,36.7,191.48,191.47,31.42270717]
[1753102540342,36.7,191.48,191.47,32.13270717]
[1753102543950,36.7,191.48,191.47,6.13270717]
[1753102544556,36.7,191.5,191.49,26.0]
[1753102544749,36.7,191.5,191.49,26.71]
[1753102545974,36.7,191.5,191.49,31.93220481]
[1753102547877,36.7,191.5,191.49,31.22220481]
[1753102549080,36.7,191.5,191.49,31.93220481]
[1753102550081,36.7,191.5,191.49,31.22220481]
[1753102550874,36.7,191.5,191.49,26.0]
[1753102551857,36.7,191.5,191.49,31.22220481]
[1753102553264,36.7,191.5,191.49,26.0]
[1753102553781,36.7,191.5,191.49,31.22220481]
[1753102555484,36.7,191.5,191.49,26.0]
[1753102555683,37.39,191.5,191.47,5.42271824]
[1753102556267,36.7,191.5,191.47,6.13271824]
[1753102556884,36.7,191.5,191.47,0.91]
[1753102557080,36.7,191.5,191.47,0.2]
[1753102557275,0.69,191.49,191.47,0.2]
[1753102557673,36.7,191.5,191.47,0.2]
[1753102557994,37.39,191.5,191.47,0.2]
[1753102558193,36.7,191.5,191.47,0.2]
[1753102558371,0.69,191.49,191.47,0.2]
[1753102560288,36.7,191.5,191.47,0.91]
[1753102560493,36.7,191.5,191.47,6.13273037]
[1753102560794,36.7,191.5,191.47,0.2]
[1753102561084,37.39,191.5,191.47,0.2]
[1753102561288,0.66,191.49,191.47,0.2]
[1753102561483,0.66,191.48,191.47,26.2]
[1753102561685,36.7,191.5,191.47,32.1127503]
[1753102562122,36.7,191.5,191.48,0.69]
[1753102562292,2.2943,191.53,191.47,31.4227503]
[1753102562592,36.68,191.52,191.49,0.69]
[1753102563789,36.68,191.52,191.5,0.69]
[1753102564091,36.68,191.52,191.48,5.22226616]
[1753102564092,37.34,191.52,191.48,5.91226616]
[1753102564274,0.66,191.51,191.47,31.42269702]
[1753102564471,0.66,191.51,191.47,32.11269702]
[1753102564678,0.66,191.51,191.48,0.69]
[1753102565067,36.68,191.52,191.49,0.69]
[1753102565267,90.46,191.54,191.5,0.69]
[1753102565585,37.34,191.53,191.48,0.03]
[1753102565883,0.66,191.52,191.48,0.03]
[1753102566088,36.68,191.53,191.49,0.69]
[1753102566682,37.34,191.53,191.5,0.69]
[1753102566885,37.34,191.53,191.48,0.72]
[1753102567069,0.66,191.52,191.48,0.03]
[1753102567572,0.66,191.51,191.48,0.03]
[1753102567896,36.68,191.5,191.49,5.91220481]
[1753102569390,36.68,191.5,191.49,5.22220481]
[1753102571380,36.68,191.5,191.48,5.25243601]
[1753102572381,36.68,191.5,191.48,5.94243601]
[1753102573495,36.68,191.5,191.48,5.25243601]
[1753102573683,36.68,191.5,191.49,5.91220481]
[1753102574493,36.68,191.5,191.49,5.22220481]
[1753102575498,0.06,191.56,191.52,26.0]
[1753102575705,0.06,191.56,191.53,0.69]
[1753102576004,36.68,191.55,191.54,0.69]
[1753102577382,36.68,191.55,191.53,5.22091987]
[1753102578906,36.68,191.55,191.53,5.91091987]
[1753102579689,36.68,191.55,191.53,5.22091987]
[1753102580485,36.68,191.55,191.53,5.91091987]
[1753102581485,0.66,191.54,191.53,5.22091987]
[1753102581809,36.68,191.55,191.53,5.22091987]
[1753102584190,36.68,191.55,191.54,0.69]
[1753102586481,36.68,191.55,191.54,31.91084159]
[1753102588721,0.06,191.56,191.54,31.91084159]
[1753102588895,0.06,191.56,191.54,31.22084159]
[1753102589213,0.06,191.56,191.55,0.69]
[1753102589414,0.06,191.57,191.55,0.69]
[1753102590209,0.06,191.58,191.55,0.69]
[1753102590410,0.06,191.58,191.56,5.22029651]
[1753102590787,0.06,191.58,191.57,0.69]
[1753102592013,0.06,191.58,191.57,5.91002401]
[1753102597522,0.06,191.59,191.57,11.84473211]
[1753102597699,0.06,191.59,191.58,0.68]
[1753102597897,0.06,191.63,191.6,26.0]
[1753102598206,0.06,191.63,191.61,26.0]
[1753102598520,0.06,191.63,191.61,26.68]
[1753102598708,0.06,191.63,191.62,26.68]
[1753102599516,0.06,191.63,191.62,31.89866193]
[1753102602829,0.06,191.65,191.62,31.89866193]
[1753102603015,0.06,191.65,191.63,0.68]
[1753102604621,0.06,191.65,191.64,31.2181173]
[1753102604926,0.06,191.65,191.64,5.2181173]
[1753102605313,0.06,191.65,191.64,5.8981173]
[1753102606228,0.06,191.67,191.66,26.0]
[1753102606408,0.06,191.67,191.66,26.68]
[1753102606611,0.06,191.67,191.66,31.89757278]
[1753102609520,0.06,191.67,191.66,31.21757278]
[1753102609834,0.72,191.67,191.66,31.21757278]
[1753102610212,0.06,191.67,191.66,31.21757278]
[1753102610411,0.06,191.67,191.66,31.89757278]
[1753102610834,0.06,191.67,191.66,31.21757278]
[1753102611735,0.72,191.67,191.66,31.21757278]
[1753102612235,0.06,191.67,191.66,31.21757278]
[1753102612733,0.72,191.67,191.66,31.21757278]
[1753102614033,0.06,191.67,191.66,31.21757278]
[1753102614239,0.06,191.67,191.66,31.89757278]
[1753102614739,0.06,191.67,191.66,31.21757278]
[1753102614913,0.72,191.67,191.66,31.21757278]
[1753102615637,0.06,191.67,191.66,31.89757278]
[1753102616624,0.06,191.67,191.66,31.21757278]
[1753102620944,0.06,191.67,191.66,31.89757278]
[1753102621524,36.62,191.68,191.66,31.89757278]
[1753102621719,0.1,191.7,191.66,44.94150474]
[1753102622027,0.1,191.7,191.67,0.66]
[1753102622840,0.1,191.7,191.68,5.21702838]
[1753102623232,0.1,191.7,191.69,0.66]
[1753102623537,0.06,191.73,191.71,26.0]
[1753102623745,0.06,191.73,191.71,26.66]
[1753102625542,0.06,191.73,191.71,31.87621198]
[1753102627226,0.06,191.73,191.71,31.21621198]
[1753102628044,0.06,191.73,191.71,31.87621198]
[1753102630047,0.06,191.76,191.72,0.66]
[1753102630349,0.06,191.76,191.74,26.0]
[1753102630726,0.06,191.76,191.75,0.66]
[1753102631949,0.06,191.76,191.75,5.87512385]
[1753102632457,0.06,191.76,191.75,5.21512385]
[1753102633337,0.06,191.76,191.75,5.87512385]
[1753102633942,0.1,191.77,191.75,5.87512385]
[1753102634147,0.1,191.77,191.75,5.21512385]
[1753102634330,0.1,191.77,191.76,0.66]
[1753102634649,0.1,191.77,191.75,5.87512385]
[1753102636535,0.1,191.78,191.76,0.66]
[1753102636847,0.1,191.78,191.77,0.66]
[1753102637046,0.69,191.85,191.78,26.0]
[1753102637249,0.69,191.84,191.8,26.0]
[1753102637443,0.69,191.86,191.81,0.66]
[1753102637926,0.69,191.86,191.82,0.66]
[1753102638334,36.7,191.87,191.86,26.0]
[1753102639046,37.39,191.87,191.86,26.0]
[1753102639235,16.78468397,191.86,191.77,5.9347081]
[1753102639441,16.78468397,191.84,191.74,0.66]
[1753102639637,16.78468397,191.84,191.74,13.69790063]
[1753102639835,0.69,191.83,191.75,0.66]
[1753102640130,36.58,191.82,191.77,26.0]
[1753102640339,36.58,191.82,191.81,26.0]
[1753102640950,37.27,191.82,191.81,26.0]
[1753102641559,0.69,191.85,191.81,26.0]
[1753102641769,0.69,191.85,191.82,26.0]
[1753102642063,36.58,191.86,191.82,26.0]
[1753102642355,0.69,191.85,191.83,5.21294896]
[1753102642567,36.58,191.86,191.83,5.21294896]
[1753102642860,0.69,191.84,191.83,5.21294896]
[1753102643856,0.69,191.84,191.82,31.21318664]
[1753102644063,36.58,191.86,191.82,31.21318664]
[1753102644255,0.69,191.83,191.82,31.21318664]
[1753102646764,18.36518397,191.82,191.8,1.45056919]
[1753102646964,54.05468397,191.81,191.8,1.45056919]
[1753102648765,59.26817648,191.81,191.8,1.45056919]
[1753102650342,54.05468397,191.81,191.8,1.45056919]
[1753102652865,37.27,191.81,191.8,1.45056919]
[1753102653348,37.27,191.81,191.8,6.66433352]
[1753102653564,0.69,191.81,191.8,6.66433352]
[1753102653771,37.27,191.81,191.8,6.66433352]
[1753102655061,37.27,191.81,191.8,1.45056919]
[1753102656071,37.27,191.81,191.8,6.66433352]
[1753102657469,17.50468397,191.84,191.8,6.66433352]
[1753102657768,37.24,191.83,191.8,6.66433352]
[1753102658071,0.66,191.82,191.8,6.66433352]
[1753102659273,0.66,191.81,191.8,6.66433352]
[1753102659491,0.06,191.84,191.8,19.69874436]
[1753102659771,0.06,191.84,191.83,26.0]
[1753102660150,0.06,191.84,191.83,26.65]
[1753102660564,0.06,191.84,191.83,31.86352778]
[1753102660955,0.06,191.84,191.83,32.51352778]
[1753102661647,0.06,191.84,191.83,37.72647674]
[1753102662048,0.06,191.84,191.83,31.21294896]
[1753102662372,0.72,191.84,191.83,11.07647674]
[1753102662569,0.72,191.84,191.83,37.07647674]
[1753102662755,0.72,191.84,191.83,11.07647674]
[1753102663263,0.72,191.84,191.83,37.07647674]
[1753102664658,0.72,191.84,191.83,31.86352778]
[1753102665677,0.06,191.84,191.83,31.86352778]
[1753102666573,0.72,191.84,191.83,31.86352778]
[1753102666979,16.78468397,191.83,191.8,1.45056919]
[1753102667276,0.06,191.84,191.82,5.86352778]
[1753102667484,0.06,191.84,191.8,6.66429883]
[1753102667485,36.56,191.83,191.8,6.66429883]
[1753102667654,37.22,191.83,191.8,6.66429883]
[1753102668660,54.00468397,191.83,191.82,5.86352778]
[1753102669060,53.34468397,191.83,191.82,5.86352778]
[1753102669969,36.56,191.83,191.82,5.86352778]
[1753102670372,36.56,191.83,191.82,11.0767485]
[1753102671177,36.56,191.83,191.82,11.7267485]
[1753102672676,0.06,191.84,191.82,11.7267485]
[1753102672874,0.06,191.84,191.82,5.21322072]
[1753102673179,0.72,191.84,191.83,5.86352778]
[1753102673582,0.06,191.84,191.83,5.86352778]
[1753102673983,0.06,191.84,191.83,6.51352778]
[1753102674286,0.06,191.84,191.83,11.72647674]
[1753102675287,0.06,191.84,191.83,11.07647674]
[1753102675493,0.72,191.84,191.83,5.86352778]
[1753102675693,0.72,191.84,191.83,11.07647674]
[1753102676610,0.72,191.84,191.81,26.0]
[1753102676777,0.72,191.84,191.83,5.86352778]
[1753102678289,0.72,191.84,191.81,31.86352778]
[1753102679276,17.50468397,191.84,191.82,5.86352778]
[1753102679685,17.50468397,191.84,191.83,5.86352778]
[1753102680696,17.50468397,191.84,191.81,26.0]
[1753102680893,16.84468397,191.84,191.83,5.86352778]
[1753102681196,16.84468397,191.84,191.82,5.86352778]
[1753102681398,0.72,191.83,191.82,5.86352778]
[1753102683100,0.06,191.84,191.82,5.86352778]
[1753102683290,0.06,191.84,191.83,5.86352778]
[1753102683693,0.06,191.84,191.83,6.52352778]
[1753102683878,0.06,191.84,191.83,0.66]
[1753102684082,0.06,191.84,191.83,6.52352778]
[1753102684689,0.06,191.84,191.83,5.86352778]
[1753102684888,0.06,191.84,191.8,2.11056919]
[1753102685091,0.72,191.83,191.81,5.21346252]
[1753102685294,0.78,191.84,191.82,5.86352778]
[1753102685487,36.54,191.83,191.81,5.21346252]
[1753102686706,36.54,191.83,191.82,5.86352778]
[1753102687584,36.54,191.83,191.82,11.0767485]
[1753102689815,36.54,191.83,191.82,5.21322072]
[1753102689983,36.54,191.83,191.82,11.0767485]
[1753102690177,36.54,191.83,191.82,11.7367485]
[1753102696603,36.54,191.83,191.82,11.0767485]
[1753102696801,36.54,191.83,191.82,11.7367485]
[1753102699828,0.06,191.84,191.82,11.7367485]
[1753102700022,0.06,191.84,191.83,6.52352778]
[1753102700923,0.06,191.84,191.83,11.73647674]
[1753102702322,0.06,191.84,191.83,11.07647674]
[1753102702799,0.06,191.84,191.83,11.73647674]
[1753102703630,0.06,191.84,191.83,5.87294896]
[1753102703800,0.06,191.84,191.83,11.73647674]
[1753102708002,0.06,191.84,191.83,5.87294896]
[1753102708210,0.06,191.84,191.83,11.73647674]
[1753102716916,0.77,191.84,191.8,7.31409697]
[1753102717136,0.06,191.84,191.83,31.86352778]
[1753102717722,0.77,191.84,191.83,31.86352778]
[1753102718026,0.77,191.84,191.83,5.86352778]
[1753102718207,0.77,191.84,191.83,37.07647674]
[1753102719329,0.77,191.84,191.8,1.45056919]
[1753102719626,53.30468397,191.83,191.8,1.45056919]
[1753102719809,0.71,191.82,191.8,1.45056919]
[1753102720126,16.78468397,191.81,191.8,1.45056919]
[1753102720327,16.78468397,191.82,191.8,1.45056919]
[1753102720512,0.71,191.81,191.8,1.45056919]